fUSD/lending_fUSD_20250226
["ID","MTS","AMOUNT","RATE_DAILY","PERIOD"]
[354624778,1740596008299,-1000000.0,0.00049,120]
[354624779,1740596008308,-5011.0,0.00049,60]
[354624780,1740596008317,-1000000.0,0.00049,120]
[354624781,1740596008327,-20000.0,0.00049,120]
[354624782,1740596008336,-163.9913324,0.00049,50]
[354624783,1740596008345,-10420.69222133,0.00049,120]
[354624784,1740596008355,-150.0,0.00049024,30]
[354624785,1740596008364,-321.42115881,0.00049038,30]
[354624786,1740596008373,-155.44354992,0.00049038,30]
[354624787,1740596008383,-300.0,0.00049041,30]
[354624788,1740596008392,-150.0,0.00049041,30]
[354624789,1740596008401,-300.0,0.00049041,30]
[354624790,1740596008410,-150.0,0.00049077,30]
[354624791,1740596008420,-321.42115881,0.00049088,30]
[354624792,1740596008431,-155.44354992,0.00049088,30]
[354624793,1740596008441,-150.0,0.00049101,30]
[354624794,1740596008451,-553.79,0.00049137,30]
[354624795,1740596008461,-553.79,0.00049137,30]
[354624796,1740596008470,-321.42115881,0.00049139,30]
[354624797,1740596008479,-155.44354992,0.00049139,30]
[354624798,1740596008489,-150.0,0.00049178,30]
[354624799,1740596008499,-321.42115881,0.00049189,30]
[354624800,1740596008508,-155.44354992,0.00049189,30]
[354624801,1740596008518,-321.42115881,0.0004924,30]
[354624802,1740596008527,-155.44354992,0.0004924,30]
[354624803,1740596008537,-150.0,0.00049254,30]
[354624804,1740596008546,-321.42115881,0.0004929,30]
[354624805,1740596008556,-155.44354992,0.0004929,30]
[354624806,1740596008565,-150.0,0.00049295,30]
[354624807,1740596008574,-3000.0,0.000493,2]
[354624808,1740596008583,-1470.22,0.00049315,120]
[354624809,1740596008593,-1470.22,0.00049315,120]
[354624810,1740596008602,-1470.22,0.00049315,120]
[354624811,1740596008614,-1470.22,0.00049315,120]
[354624812,1740596008623,-1470.22,0.00049315,120]
[354624813,1740596008634,-1470.22,0.00049315,120]
[354624814,1740596008643,-1470.22,0.00049315,120]
[354624815,1740596008652,-1470.22,0.00049315,120]
[354624816,1740596008662,-1470.22,0.00049315,120]
[354624817,1740596008671,-1470.22,0.00049315,120]
[354624818,1740596008683,-1470.22,0.00049315,120]
[354624819,1740596008692,-500.0,0.00049315,120]
[354624820,1740596008702,-500.0,0.00049315,120]
[354624821,1740596008711,-500.0,0.00049315,120]
[354624822,1740596008720,-500.0,0.00049315,120]
[354624823,1740596008730,-500.0,0.00049315,120]
[354624824,1740596008740,-500.0,0.00049315,120]
[354624825,1740596008749,-500.0,0.00049315,120]
[354624826,1740596008758,-500.0,0.00049315,120]
[354624827,1740596008767,-500.0,0.00049315,120]
[354624828,1740596008777,-500.0,0.00049315,120]
[354624829,1740596008786,-500.0,0.00049315,120]
[354624830,1740596008795,-500.0,0.00049315,120]
[354624831,1740596008805,-500.0,0.00049315,120]
[354624832,1740596008814,-500.0,0.00049315,120]
[354624833,1740596008824,-500.0,0.00049315,120]
[354624834,1740596008833,-500.0,0.00049315,120]
[354624835,1740596008843,-500.0,0.00049315,120]
[354624836,1740596008852,-500.0,0.00049315,120]
[354624837,1740596008861,-500.0,0.00049315,120]
[354624838,1740596008871,-500.0,0.00049315,120]
[354624839,1740596008880,-500.0,0.00049315,120]
[354624840,1740596008890,-500.0,0.00049315,120]
[354624841,1740596008899,-500.0,0.00049315,120]
[354624842,1740596008909,-500.0,0.00049315,120]
[354624843,1740596008918,-500.0,0.00049315,120]
[354624844,1740596008929,-500.0,0.00049315,120]
[354624845,1740596008938,-500.0,0.00049315,120]
[354624846,1740596008948,-500.0,0.00049315,120]
[354624847,1740596008958,-500.0,0.00049315,120]
[354624848,1740596008967,-500.0,0.00049315,120]
[354624849,1740596008977,-500.0,0.00049315,120]
[354624850,1740596008987,-500.0,0.00049315,120]
[354624851,1740596008997,-500.0,0.00049315,120]
[354624852,1740596009007,-500.0,0.00049315,120]
[354624853,1740596009017,-500.0,0.00049315,120]
[354624854,1740596009027,-500.0,0.00049315,120]
[354624855,1740596009036,-500.0,0.00049315,120]
[354624856,1740596009045,-500.0,0.00049315,120]
[354624857,1740596009055,-500.0,0.00049315,120]
[354624858,1740596009064,-500.0,0.00049315,120]
[354624859,1740596009074,-500.0,0.00049315,120]
[354624860,1740596009083,-500.0,0.00049315,120]
[354624861,1740596009093,-500.0,0.00049315,120]
[354624862,1740596009103,-500.0,0.00049315,120]
[354624863,1740596009113,-500.0,0.00049315,120]
[354624864,1740596009122,-500.0,0.00049315,120]
[354624865,1740596009131,-500.0,0.00049315,120]
[354624866,1740596009141,-500.0,0.00049315,120]
[354624867,1740596009150,-500.0,0.00049315,120]
[354624868,1740596009159,-500.0,0.00049315,120]
[354624869,1740596009168,-500.0,0.00049315,120]
[354624870,1740596009178,-500.0,0.00049315,120]
[354624871,1740596009189,-500.0,0.00049315,120]
[354624872,1740596009198,-500.0,0.00049315,120]
[354624873,1740596009207,-500.0,0.00049315,120]
[354624874,1740596009216,-500.0,0.00049315,120]
[354624875,1740596009225,-515.79,0.00049315,120]
[354624876,1740596009235,-515.79,0.00049315,120]
[354624877,1740596009244,-515.79,0.00049315,120]
[354624878,1740596009253,-515.79,0.00049315,120]
[354624879,1740596009263,-515.79,0.00049315,120]
[354624880,1740596009272,-515.79,0.00049315,120]
[354624881,1740596009281,-515.79,0.00049315,120]
[354624882,1740596009290,-515.79,0.00049315,120]
[354624883,1740596009299,-515.79,0.00049315,120]
[354624884,1740596009309,-515.79,0.00049315,120]
[354624885,1740596009318,-515.79,0.00049315,120]
[354624886,1740596009326,-515.79,0.00049315,120]
[354624887,1740596009335,-515.79,0.00049315,120]
[354624888,1740596009344,-515.79,0.00049315,120]
[354624889,1740596009353,-515.79,0.00049315,120]
[354624890,1740596009362,-515.79,0.00049315,120]
[354624891,1740596009371,-2174.7,0.00049315,120]
[354624892,1740596009380,-500.0,0.00049315,36]
[354624893,1740596009389,-500.0,0.00049315,36]
[354624894,1740596009399,-5000.0,0.00049315,2]
[354624895,1740596009408,-5000.0,0.00049315,2]
[354624896,1740596009418,-5000.0,0.00049315,2]
[354624897,1740596009428,-4943.871001,0.00049315,2]
[354624898,1740596009438,-150.0,0.00049331,30]
[354624899,1740596009448,-321.42115881,0.00049341,30]
[354624900,1740596009457,-155.44354992,0.00049341,30]
[354624901,1740596009466,-515.79,0.00049371,120]
[354624902,1740596009475,-1266.0,0.00049378,30]
[354624903,1740596009484,-321.42115881,0.00049391,30]
[354624904,1740596009494,-155.44354992,0.00049391,30]
[354624905,1740596009503,-25000.0,0.000494,120]
[354624906,1740596009511,-350.0,0.000494,120]
[354624907,1740596009521,-375.0,0.000494,120]
[354624908,1740596009530,-150.0,0.00049408,30]
[354624909,1740596009540,-553.79,0.00049411,60]
[354624910,1740596009550,-553.79,0.00049411,60]
[354624911,1740596009559,-852.08,0.00049415,30]
[354624912,1740596009569,-321.42115881,0.00049441,30]
[354624913,1740596009579,-155.44354992,0.00049441,30]
[354624914,1740596009588,-2174.7,0.00049452,120]
[354624915,1740596009598,-5200.0,0.0004946,120]
[354624916,1740596009607,-1500.0,0.0004946,120]
[354624917,1740596009617,-1700.0,0.0004946,120]
[354624918,1740596009627,-150.0,0.00049485,30]
[354624919,1740596009637,-321.42115881,0.00049492,30]
[354624920,1740596009646,-155.44354992,0.00049492,30]
[354624921,1740596009655,-511.858368,0.00049499,120]
[354624922,1740596009664,-1000000.0,0.000495,120]
[354624923,1740596009674,-1279.22,0.000495,7]
[354624924,1740596009689,-150.0,0.00049512,30]
[354624925,1740596009699,-321.42115881,0.00049542,30]
[354624926,1740596009709,-155.44354992,0.00049542,30]
[354624927,1740596009719,-150.0,0.00049562,30]
[354624928,1740596009729,-1470.22,0.00049589,120]
[354624929,1740596009740,-2174.7,0.00049589,120]
[354624930,1740596009749,-440.6,0.00049589,30]
[354624931,1740596009758,-776.63,0.00049589,30]
[354624932,1740596009769,-776.63,0.00049589,30]
[354624933,1740596009778,-440.6,0.00049589,30]
[354624934,1740596009787,-776.63,0.00049589,30]
[354624935,1740596009797,-440.6,0.00049589,30]
[354624936,1740596009808,-154.89,0.00049589,30]
[354624937,1740596009817,-511.85,0.00049589,30]
[354624938,1740596009826,-440.6,0.00049589,30]
[354624939,1740596009836,-776.63,0.00049589,30]
[354624940,1740596009845,-880.93,0.00049589,30]
[354624941,1740596009854,-776.63,0.00049589,30]
[354624942,1740596009864,-440.6,0.00049589,30]
[354624943,1740596009873,-440.6,0.00049589,30]
[354624944,1740596009883,-321.42115881,0.00049593,30]
[354624945,1740596009892,-155.44354992,0.00049593,30]
[354624946,1740596009902,-167.56,0.00049632,120]
[354624947,1740596009912,-167.561,0.00049632,120]
[354624948,1740596009921,-150.0,0.00049639,30]
[354624949,1740596009933,-321.42115881,0.00049643,30]
[354624950,1740596009942,-155.44354992,0.00049643,30]
[354624951,1740596009952,-515.79,0.00049645,120]
[354624952,1740596009962,-553.79,0.00049685,60]
[354624953,1740596009972,-553.79,0.00049685,60]
[354624954,1740596009981,-321.42115881,0.00049694,30]
[354624955,1740596009999,-155.44354992,0.00049694,30]
[354624956,1740596010009,-155.51,0.000497,40]
[354624957,1740596010018,-150.0,0.0004971,20]
[354624958,1740596010028,-150.0,0.00049715,30]
[354624959,1740596010039,-2174.7,0.00049726,120]
[354624960,1740596010049,-150.0,0.00049729,30]
[354624961,1740596010059,-321.42115881,0.00049744,30]
[354624962,1740596010068,-155.44354992,0.00049744,30]
[354624963,1740596010078,-150.0,0.00049792,30]
[354624964,1740596010089,-321.42115881,0.00049795,30]
[354624965,1740596010098,-155.44354992,0.00049795,30]
[354624966,1740596010108,-137663.43163331,0.000498,120]
[354624967,1740596010117,-826344.84025152,0.000498,120]
[354624968,1740596010126,-3141.61749897,0.000498,120]
[354624969,1740596010136,-153.48,0.000498,48]
[354624970,1740596010145,-153.48,0.000498,48]
[354624971,1740596010155,-153.48,0.000498,48]
[354624972,1740596010164,-153.48,0.000498,48]
[354624973,1740596010173,-153.48,0.000498,48]
[354624974,1740596010186,-153.48,0.000498,48]
[354624975,1740596010196,-153.48,0.000498,48]
[354624976,1740596010205,-321.42115881,0.00049845,30]
[354624977,1740596010214,-155.44354992,0.00049845,30]
[354624978,1740596010224,-1470.22,0.00049863,120]
[354624979,1740596010234,-2174.7,0.00049863,120]
[354624980,1740596010243,-150.0,0.00049863,30]
[354624981,1740596010252,-150.0,0.00049863,30]
[354624982,1740596010262,-150.0,0.00049863,30]
[354624983,1740596010271,-150.0,0.00049863,30]
[354624984,1740596010281,-150.0,0.00049863,30]
[354624985,1740596010291,-344.13,0.00049863,30]
[354624986,1740596010302,-150.0,0.00049869,30]
[354624987,1740596010311,-1266.0,0.00049877,30]
[354624988,1740596010321,-553.34287256,0.00049877,30]
[354624989,1740596010330,-321.42115881,0.00049896,30]
[354624990,1740596010339,-155.44354992,0.00049896,30]
[354624991,1740596010348,-295.66386647,0.000499,2]
[354624992,1740596010358,-515.79,0.00049919,120]
[354624993,1740596010367,-321.42115881,0.00049946,30]
[354624994,1740596010377,-269.82382786,0.00049946,30]
[354624995,1740596010386,-155.44354992,0.00049946,30]
[354624996,1740596010396,-256.39346691,0.00049946,30]
[354624997,1740596010406,-553.79,0.00049959,60]
[354624998,1740596010416,-553.79,0.00049959,60]
[354624999,1740596010428,-424.43594173,0.00049999,120]
[354625000,1740596010438,-418.25524794,0.00049999,120]
[354625001,1740596010448,-374.8112062,0.00049999,120]
[354625002,1740596010458,-500.0,0.00049999,120]
[354625003,1740596010467,-481.68292202,0.00049999,120]
[354625004,1740596010477,-434.81790218,0.00049999,7]
[354625005,1740596010486,-500.0,0.00049999,120]
[354625006,1740596010495,-500.0,0.00049999,120]
[354625007,1740596010505,-500.0,0.00049999,120]
[354625008,1740596010514,-500.0,0.00049999,120]
[354625009,1740596010524,-500.0,0.00049999,120]
[354625010,1740596010534,-500.0,0.00049999,120]
[354625011,1740596010543,-394.20667079,0.00049999,120]
[354625012,1740596010556,-500.0,0.00049999,120]
[354625013,1740596010565,-181.90111789,0.00049999,120]
[354625014,1740596010574,-500.0,0.00049999,120]
[354625015,1740596010584,-500.0,0.00049999,120]
[354625016,1740596010593,-500.0,0.00049999,120]
[354625017,1740596010603,-235.13004959,0.00049999,120]
[354625018,1740596010612,-1000.0,0.00049999,120]
[354625019,1740596010622,-100000.0,0.0005,50]
[354625020,1740596010632,-1130.89836049,0.0005,2]
[354625021,1740596010642,-2621.3485954,0.0005,5]
[354625022,1740596010652,-350.0,0.0005,120]
[354625023,1740596010661,-1260.49584851,0.0005,120]
[354625024,1740596010670,-1931650.12283393,0.0005,120]
[354625025,1740596011087,-2612.42375328,0.0005,120]
[354625026,1740596011099,-967.1442304,0.0005,120]
[354625027,1740596011110,-7343.99341364,0.0005,120]
[354625028,1740596011122,-57426.31576875,0.0005,120]
[354625029,1740596011132,-780.8232904,0.0005,60]
[354625030,1740596011141,-128391.97902051,0.0005,120]
[354625031,1740596011158,-593.99,0.00039178,14]
[354625032,1740596011168,-84406.01000006,0.0005,120]
[354625033,1740596011181,-42562.51820001,0.0005,120]
[354625034,1740596011192,-4518.228,0.0005,120]
[354625035,1740596244284,-159.7,0.00032,30]
[354625036,1740596244311,-679.07,0.00032756,2]
[354625037,1740596244336,-868.87903926,0.0003445,5]
[354625038,1740596244362,-868.87903927,0.0003445,5]
[354625039,1740596244387,-2449.2768,0.0003455,2]
[354625040,1740596244414,-723.5508,0.0003455,2]
[354625041,1740596244469,-266.9752,0.0003455,2]
[354625042,1740596244494,-12853.8778,0.0003455,2]
[354625043,1740596244518,-301.1,0.00034631,2]
[354625044,1740596244543,-250.0,0.00034933,2]
[354625045,1740596244569,-223.97,0.00034936,2]
[354625046,1740596244596,-679.07,0.0003502,2]
[354625047,1740596244621,-150.0,0.00035052,7]
[354625048,1740596244647,-223.97,0.0003512,2]
[354625049,1740596244672,-250.0,0.00035256,2]
[354625050,1740596244698,-223.97,0.00035303,2]
[354625051,1740596244721,-1172.5669,0.00035316,2]
[354625052,1740596244744,-299.3221,0.00035316,2]
[354625053,1740596244768,-500.0,0.000354,2]
[354625054,1740596244792,-1000.0,0.000354,2]
[354625055,1740596244815,-1000.0,0.000354,2]
[354625056,1740596244838,-2500.0,0.000354,2]
[354625057,1740596244862,-31219.5654,0.00035416,2]
[354625058,1740596244886,-223.97,0.00035487,2]
[354625059,1740596244912,-600.0,0.000355,12]
[354625060,1740596244936,-5000.0,0.00035516,2]
[354625061,1740596244961,-2440.10884687,0.00035516,2]
[354625062,1740596244987,-1200.0,0.000356,12]
[354625063,1740596245013,-172.2,0.00035606,2]
[354625064,1740596245037,-452.09653727,0.00035616,14]
[354625065,1740596245063,-251.78,0.00035616,14]
[354625066,1740596245089,-500.0,0.00035616,14]
[354625067,1740596245114,-500.0,0.00035616,14]
[354625068,1740596245140,-500.0,0.00035616,14]
[354625069,1740596245165,-500.0,0.00035616,14]
[354625070,1740596245190,-500.0,0.00035616,14]
[354625071,1740596245214,-500.0,0.00035616,14]
[354625072,1740596245240,-500.0,0.00035616,14]
[354625073,1740596245266,-500.0,0.00035616,14]
[354625074,1740596245292,-500.0,0.00035616,14]
[354625075,1740596245317,-547.0,0.00035616,14]
[354625076,1740596245343,-330.78097865,0.00035616,14]
[354625077,1740596245367,-500.0,0.00035616,14]
[354625078,1740596245392,-754.28,0.00035616,14]
[354625079,1740596245415,-500.0,0.00035616,14]
[354625080,1740596245439,-500.0,0.00035616,14]
[354625081,1740596245463,-500.0,0.00035616,14]
[354625082,1740596245488,-527.25,0.00035616,14]
[354625083,1740596245513,-500.0,0.00035616,14]
[354625084,1740596245537,-471.46357387,0.00035616,14]
[354625085,1740596245562,-483.93436125,0.00035616,14]
[354625086,1740596245587,-527.99,0.00035616,14]
[354625087,1740596245612,-500.0,0.00035616,14]
[354625088,1740596245642,-1055.87,0.00035616,14]
[354625089,1740596245667,-500.0,0.00035616,14]
[354625090,1740596245693,-788.61,0.00035616,14]
[354625091,1740596245726,-500.0,0.00035616,14]
[354625092,1740596245751,-500.0,0.00035616,14]
[354625093,1740596245777,-500.0,0.00035616,14]
[354625094,1740596245804,-500.0,0.00035616,14]
[354625095,1740596245830,-526.98,0.00035616,14]
[354625096,1740596245855,-500.0,0.00035616,14]
[354625097,1740596245880,-500.0,0.00035616,14]
[354625098,1740596245905,-1067.67,0.00035616,14]
[354625099,1740596245930,-500.0,0.00035616,14]
[354625100,1740596245954,-530.85708337,0.00035616,14]
[354625101,1740596245978,-500.0,0.00035616,14]
[354625102,1740596246003,-500.0,0.00035616,14]
[354625103,1740596246027,-500.0,0.00035616,14]
[354625104,1740596246059,-500.0,0.00035616,7]
[354625105,1740596246087,-500.0,0.00035616,14]
[354625106,1740596246114,-500.0,0.00035616,14]
[354625107,1740596246161,-500.0,0.00035616,14]
[354625108,1740596246188,-505.18015617,0.00035616,14]
[354625109,1740596246213,-500.0,0.00035616,14]
[354625110,1740596246239,-500.0,0.00035616,14]
[354625111,1740596246265,-500.0,0.00035616,14]
[354625112,1740596246290,-500.0,0.00035616,14]
[354625113,1740596246317,-500.0,0.00035616,14]
[354625114,1740596246344,-500.0,0.00035616,14]
[354625115,1740596246371,-500.0,0.00035616,14]
[354625116,1740596246401,-500.0,0.00035616,14]
[354625117,1740596246427,-1271.41,0.00035616,14]
[354625118,1740596246453,-1180.24,0.00035616,14]
[354625119,1740596246479,-500.0,0.00035616,2]
[354625120,1740596246504,-500.0,0.00035616,14]
[354625121,1740596246528,-500.0,0.00035616,14]
[354625122,1740596246553,-500.0,0.00035616,14]
[354625123,1740596246577,-500.0,0.00035616,14]
[354625124,1740596246602,-500.0,0.00035616,14]
[354625125,1740596246644,-2753.33,0.00035616,14]
[354625126,1740596246671,-500.0,0.00035616,14]
[354625127,1740596246698,-500.0,0.00035616,14]
[354625128,1740596246725,-500.0,0.00035616,14]
[354625129,1740596246753,-500.0,0.00035616,14]
[354625130,1740596246780,-500.0,0.00035616,14]
[354625131,1740596246805,-200.337007,0.00035616,14]
[354625132,1740596246838,-500.0,0.00035616,14]
[354625133,1740596246863,-1076.05,0.00035616,14]
[354625134,1740596246892,-500.0,0.00035616,14]
[354625135,1740596246918,-600.38,0.00035616,14]
[354625136,1740596246944,-500.28,0.00035616,14]
[354625137,1740596246970,-500.0,0.00035616,14]
[354625138,1740596246996,-500.0,0.00035616,14]
[354625139,1740596247021,-500.0,0.00035616,14]
[354625140,1740596247047,-343.466982,0.00035616,14]
[354625141,1740596247076,-4013.53,0.00035616,14]
[354625142,1740596247106,-1140.31,0.00035616,14]
[354625143,1740596247150,-500.0,0.00035616,14]
[354625144,1740596247178,-500.0,0.00035616,14]
[354625145,1740596247207,-500.0,0.00035616,14]
[354625146,1740596247232,-1919.18,0.00035616,14]
[354625147,1740596247258,-500.0,0.00035616,14]
[354625148,1740596247286,-642.98,0.00035616,14]
[354625149,1740596247535,-371.42578074,0.00035616,14]
[354625150,1740596247563,-500.0,0.00035616,14]
[354625151,1740596247588,-500.0,0.00035616,14]
[354625152,1740596247614,-500.0,0.00035616,14]
[354625153,1740596247648,-500.0,0.00035616,14]
[354625154,1740596247674,-500.0,0.00035616,14]
[354625155,1740596247701,-500.0,0.00035616,14]
[354625156,1740596247729,-609.32,0.00035616,14]
[354625157,1740596247758,-500.0,0.00035616,14]
[354625158,1740596247785,-500.0,0.00035616,14]
[354625159,1740596247813,-500.0,0.00035616,14]
[354625160,1740596247839,-500.0,0.00035616,14]
[354625161,1740596247865,-500.0,0.00035616,14]
[354625162,1740596247897,-500.0,0.00035616,14]
[354625163,1740596247923,-500.0,0.00035616,14]
[354625164,1740596247949,-500.0,0.00035616,14]
[354625165,1740596247982,-500.0,0.00035616,14]
[354625166,1740596248009,-245.68177718,0.00035616,14]
[354625167,1740596248037,-514.92,0.00035616,14]
[354625168,1740596248064,-500.0,0.00035616,14]
[354625169,1740596248094,-202.394867,0.00035616,14]
[354625170,1740596248122,-500.0,0.00035616,14]
[354625171,1740596248153,-500.0,0.00035616,14]
[354625172,1740596248180,-500.0,0.00035616,14]
[354625173,1740596248207,-3882.72,0.00035616,14]
[354625174,1740596248233,-626.24,0.00035616,14]
[354625175,1740596248260,-732.04,0.00035616,14]
[354625176,1740596248286,-500.0,0.00035616,14]
[354625177,1740596248312,-500.0,0.00035616,14]
[354625178,1740596248338,-500.0,0.00035616,14]
[354625179,1740596248365,-602.32,0.00035616,14]
[354625180,1740596248394,-500.0,0.00035616,14]
[354625181,1740596248420,-500.0,0.00035616,14]
[354625182,1740596248446,-720.45,0.00035616,14]
[354625183,1740596248470,-500.0,0.00035616,14]
[354625184,1740596248495,-500.0,0.00035616,14]
[354625185,1740596248520,-500.0,0.00035616,14]
[354625186,1740596248546,-3355.66,0.00035616,14]
[354625187,1740596248571,-500.0,0.00035616,14]
[354625188,1740596248596,-500.0,0.00035616,14]
[354625189,1740596248621,-350.24461187,0.00035616,14]
[354625190,1740596248648,-1027.07,0.00035616,14]
[354625191,1740596248674,-1000.0,0.00035616,14]
[354625192,1740596248700,-500.0,0.00035616,14]
[354625193,1740596248727,-500.0,0.00035616,14]
[354625194,1740596248753,-500.0,0.00035616,14]
[354625195,1740596248779,-500.0,0.00035616,14]
[354625196,1740596248806,-500.0,0.00035616,14]
[354625197,1740596248834,-500.0,0.00035616,14]
[354625198,1740596248861,-500.0,0.00035616,14]
[354625199,1740596248892,-500.0,0.00035616,14]
[354625200,1740596248918,-500.0,0.00035616,14]
[354625201,1740596248945,-500.0,0.00035616,14]
[354625202,1740596248972,-500.0,0.00035616,14]
[354625203,1740596248999,-500.0,0.00035616,14]
[354625204,1740596249027,-500.0,0.00035616,14]
[354625205,1740596249055,-531.44,0.00035616,14]
[354625206,1740596249087,-500.0,0.00035616,14]
[354625207,1740596249120,-500.0,0.00035616,14]
[354625208,1740596249149,-500.0,0.00035616,14]
[354625209,1740596249176,-500.0,0.00035616,14]
[354625210,1740596249203,-500.0,0.00035616,14]
[354625211,1740596249230,-500.0,0.00035616,14]
[354625212,1740596249257,-500.0,0.00035616,14]
[354625213,1740596249283,-500.0,0.00035616,14]
[354625214,1740596249310,-500.0,0.00035616,14]
[354625215,1740596249340,-500.0,0.00035616,14]
[354625216,1740596249366,-500.0,0.00035616,14]
[354625217,1740596249395,-500.0,0.00035616,14]
[354625218,1740596249422,-281.30543203,0.00035616,14]
[354625219,1740596249450,-500.0,0.00035616,14]
[354625220,1740596249483,-500.0,0.00035616,14]
[354625221,1740596249511,-500.0,0.00035616,14]
[354625222,1740596249539,-500.0,0.00035616,14]
[354625223,1740596249565,-500.0,0.00035616,14]
[354625224,1740596249590,-500.0,0.00035616,14]
[354625225,1740596249615,-500.0,0.00035616,14]
[354625226,1740596249643,-500.0,0.00035616,14]
[354625227,1740596249670,-500.0,0.00035616,14]
[354625228,1740596249696,-500.0,0.00035616,14]
[354625229,1740596249725,-500.0,0.00035616,14]
[354625230,1740596249751,-500.0,0.00035616,14]
[354625231,1740596249776,-500.0,0.00035616,14]
[354625232,1740596249803,-500.0,0.00035616,14]
[354625233,1740596249829,-500.0,0.00035616,14]
[354625234,1740596249856,-930.15,0.00035616,14]
[354625235,1740596249884,-963.57,0.00035616,14]
[354625236,1740596249910,-500.0,0.00035616,14]
[354625237,1740596249936,-500.0,0.00035616,14]
[354625238,1740596249964,-223.97,0.00035671,2]
[354625239,1740596249990,-1800.0,0.000357,13]
[354625240,1740596250281,-3316.5047,0.0003579,2]
[354625241,1740596250310,-2400.0,0.000358,13]
[354625242,1740596250339,-223.97,0.00035855,2]
[354625243,1740596250366,-172.2,0.0003588,2]
[354625244,1740596250398,-500.0,0.0003589,14]
[354625245,1740596250426,-500.0,0.0003589,14]
[354625246,1740596250453,-500.0,0.0003589,14]
[354625247,1740596250481,-500.0,0.0003589,14]
[354625248,1740596250512,-500.0,0.0003589,14]
[354625249,1740596250540,-436.68108917,0.0003589,14]
[354625250,1740596250567,-547.0,0.0003589,14]
[354625251,1740596250595,-268.46099272,0.0003589,14]
[354625252,1740596250624,-754.28,0.0003589,14]
[354625253,1740596250656,-264.35,0.0003589,14]
[354625254,1740596250683,-628.07,0.0003589,14]
[354625255,1740596250710,-527.25,0.0003589,14]
[354625256,1740596250736,-500.0,0.0003589,14]
[354625257,1740596250763,-527.99,0.0003589,14]
[354625258,1740596250790,-1055.87,0.0003589,14]
[354625259,1740596250817,-500.0,0.0003589,14]
[354625260,1740596250844,-788.61,0.0003589,14]
[354625261,1740596250871,-219.60399559,0.0003589,14]
[354625262,1740596250903,-500.0,0.0003589,14]
[354625263,1740596250930,-500.0,0.0003589,14]
[354625264,1740596250958,-526.98,0.0003589,14]
[354625265,1740596250985,-500.0,0.0003589,14]
[354625266,1740596251012,-548.22,0.0003589,14]
[354625267,1740596251038,-1067.67,0.0003589,14]
[354625268,1740596251065,-500.0,0.0003589,14]
[354625269,1740596251093,-475.3,0.0003589,14]
[354625270,1740596251119,-439.46,0.0003589,14]
[354625271,1740596251150,-500.0,0.0003589,7]
[354625272,1740596251180,-500.0,0.0003589,14]
[354625273,1740596251208,-500.0,0.0003589,14]
[354625274,1740596251235,-500.0,0.0003589,14]
[354625275,1740596251263,-500.0,0.0003589,14]
[354625276,1740596251289,-595.435283,0.0003589,14]
[354625277,1740596251316,-311.0,0.0003589,14]